fUSD/lending_fUSD_20240825
["ID","MTS","AMOUNT","RATE_DAILY","PERIOD"]
[335932830,1724614237656,-284.9,0.0001078,2]
[335932833,1724614239672,-692.285,0.0001078,2]
[335932847,1724614245446,-329.968208,0.0001078,2]
[335932858,1724614518660,1000.0,9.822e-05,2]
[335932859,1724614640988,366.78,8.219e-05,2]
[335932860,1724614673479,200.0,9.761e-05,2]
[335932861,1724614689904,218.91005949,0.00010009,2]
[335932863,1724614804067,182.0,9.736e-05,2]
[335932864,1724614851757,330.46251231,0.00010009,2]
[335932878,1724615042831,1000.0,9.685e-05,2]
[335932883,1724615060284,1099.36692642,0.00010009,2]
[335932884,1724615061791,159.14561955,0.00010009,2]
[335932885,1724615075162,291.80613083,0.00010009,2]
[335932886,1724615101167,760.79843827,0.00010009,2]
[335932888,1724615122662,369.08,8.219e-05,2]
[335932889,1724615130599,1050.0,0.0001,2]
[335932890,1724615183075,840.0,9.639e-05,2]
[335932891,1724615200168,760.79843827,0.0001,2]
[335932892,1724615215391,155.0,0.00010009,2]
[335932893,1724615223832,865.39221263,9.926e-05,2]
[335932894,1724615232884,155.0,0.00010009,2]
[335932896,1724615282315,500.0,0.00027,120]
[335932897,1724615302258,500.0,0.00027,120]
[335932898,1724615308339,500.0,0.00027,120]
[335932899,1724615331331,500.0,0.00027,120]
[335932902,1724615349893,23900.0,9.614e-05,2]
[335932903,1724615351092,254.41,9.614e-05,2]
[335932904,1724615352105,500.0,0.00027,120]
[335932933,1724615431593,-333.18904981,0.00010327,2]
[335932934,1724615431603,-500.0,0.00010418,2]
[335932935,1724615431613,-500.0,0.00010427,2]
[335932936,1724615431622,-500.0,0.00010436,2]
[335932937,1724615431631,-500.0,0.00010445,2]
[335932938,1724615431640,-500.0,0.00010453,2]
[335932939,1724615431649,-369.08,0.00010458,2]
[335932940,1724615431659,-500.0,0.00010462,2]
[335932941,1724615431668,-500.0,0.00010471,2]
[335932942,1724615431677,-500.0,0.0001048,2]
[335932943,1724615431687,-500.0,0.00010489,2]
[335932944,1724615431696,-299.99,0.00010489,2]
[335932945,1724615431706,-150.0,0.00010493,2]
[335932946,1724615431715,-500.0,0.00010497,2]
[335932947,1724615431725,-35748.21411799,0.00010505,2]
[335932948,1724615431734,-500.0,0.00010506,2]
[335932949,1724615431744,-500.0,0.00010515,2]
[335932950,1724615431753,-500.0,0.00010524,2]
[335932951,1724615431763,-500.0,0.00010533,2]
[335932952,1724615431773,-300.0,0.0001054,2]
[335932953,1724615431782,-500.0,0.00010541,2]
[335932954,1724615431791,-500.0,0.0001055,2]
[335932955,1724615431801,-500.0,0.00010559,2]
[335932956,1724615431810,-687.8392205,0.00010566,2]
[335932957,1724615431819,-687.8392205,0.00010566,2]
[335932958,1724615431828,-500.0,0.00010568,2]
[335932959,1724615431838,-500.0,0.00010577,2]
[335932960,1724615431847,-500.0,0.00010585,2]
[335932961,1724615431857,-500.0,0.00010594,2]
[335932962,1724615431867,-500.0,0.00010603,2]
[335932963,1724615431877,-500.0,0.00010612,2]
[335932964,1724615431886,-150.0,0.00010612,2]
[335932965,1724615431896,-500.0,0.00010621,2]
[335932966,1724615431905,-500.0,0.00010629,2]
[335932967,1724615431915,-500.0,0.00010638,2]
[335932968,1724615431924,-2188.61214,0.0001067,2]
[335932969,1724615431933,-2188.61214,0.0001067,2]
[335932970,1724615431943,-2188.61215,0.0001067,2]
[335932971,1724615431951,-1415.90779767,0.0001067,2]
[335932972,1724615431964,-772.70434233,0.0001067,2]
[335932973,1724615431973,-1423.02573789,0.0001067,2]
[335932974,1724615431989,-765.58640211,0.0001067,2]
[335932975,1724615431999,-663.8749,0.0001068,2]
[335932976,1724615432009,-1405.88539789,0.0001068,2]
[335932977,1724615432021,-2383.07620211,0.0001068,2]
[335932978,1724615432031,-1528.5043,0.0001068,2]
[335932979,1724615432040,-2465.31949789,0.0001068,2]
[335932980,1724615436869,1520.11,9.883e-05,2]
[335932981,1724615437575,-34.68050211,0.0001068,2]
[335932982,1724615437585,-1111.124,0.0001068,2]
[335932983,1724615437594,-329.968208,0.0001068,2]
[335932984,1724615437603,-274.43894055,0.0001068,2]
[335932985,1724615437836,-1294.315,0.0001068,2]
[335932986,1724615437847,-1378.66509581,0.0001068,2]
[335932987,1724615437858,-1475.64,0.0001068,2]
[335932988,1724615437870,-2526.15916364,0.0001068,2]
[335932989,1724615437879,-24.06143812,0.00010699,2]
[335932994,1724615439628,-128.6124038,0.00010699,2]
[335932995,1724615439638,-175.72792348,0.00010699,2]
[335932996,1724615439648,-171.44570036,0.00010705,2]
[335932997,1724615439657,-652.14048751,0.0001077,2]
[335932998,1724615439669,-347.85951249,0.0001077,2]
[335932999,1724615439678,-200.0,0.00010773,2]
[335933000,1724615439688,-134.74571935,0.00010773,2]
[335933001,1724615439733,-365.25428065,0.00010773,2]
[335933002,1724615439743,-1121.21015022,0.00010777,2]
[335933003,1724615439754,-4389.18717732,0.00010777,2]
[335933004,1724615439763,-20523.70692663,0.0001078,2]
[335933005,1724615439775,-3079.4616,0.0001078,2]
[335933006,1724615439789,-396.97901136,0.0001078,2]
[335933007,1724615439800,-26641.17337603,0.0001078,2]
[335933008,1724615439811,-261.71009371,0.0001078,2]
[335933009,1724615439843,-12997.90260949,0.0001078,2]
[335933010,1724615439855,-356.19588052,0.0001078,2]
[335933011,1724615439898,-350.41594962,0.0001078,2]
[335933012,1724615439909,-15941.87016729,0.0001078,2]
[335933013,1724615439921,-711.3485025,0.0001078,2]
[335933014,1724615439952,-598386.93938996,0.0001078,2]
[335933015,1724615439963,-2988.78326536,0.0001078,2]
[335933016,1724615439976,-7583.60000003,0.0001078,2]
[335933017,1724615440006,-132423.12551638,0.0001078,2]
[335933018,1724615440015,-2188.61215,0.0001078,2]
[335933019,1724615440024,-500.0,0.00010788,2]
[335933020,1724615440033,-5510.39732754,0.00010795,2]
[335933021,1724615440042,-500.0,0.00010797,2]
[335933022,1724615440052,-226268.29726181,0.00010798,2]
[335933024,1724615440061,-500.0,0.00010805,2]
[335933025,1724615440070,-500.0,0.00010814,2]
[335933027,1724615440079,-254.41,0.00010816,2]
[335933029,1724615440089,-500.0,0.00010823,2]
[335933031,1724615440098,-500.0,0.00010832,2]
[335933033,1724615440108,-500.0,0.00010841,2]
[335933035,1724615440117,-840.0,0.00010844,2]
[335933037,1724615440127,-500.0,0.00010849,2]
[335933039,1724615440136,-500.0,0.00010858,2]
[335933041,1724615440145,-181.98,0.00010861,2]
[335933043,1724615440155,-500.0,0.00010867,2]
[335933045,1724615440164,-150.0,0.0001089,2]
[335933047,1724615440173,-1559.3229721,0.00010899,2]
[335933049,1724615440182,-1559.32297208,0.00010899,2]
[335933051,1724615440191,-1559.32297208,0.00010899,2]
[335933052,1724615440200,-1559.32297208,0.00010899,2]
[335933053,1724615440209,-1559.32297208,0.00010899,2]
[335933054,1724615440218,-1217.41844045,0.00010899,2]
[335933055,1724615440230,-341.90453163,0.00010899,2]
[335933056,1724615440239,-1559.32297208,0.00010899,2]
[335933057,1724615440251,-1559.32297208,0.00010899,2]
[335933058,1724615440259,-435.03778319,0.00010899,2]
[335933060,1724615442631,-1124.28518889,0.00010899,2]
[335933061,1724615442640,-1000.0,0.000109,2]
[335933062,1724615442650,-342.86481061,0.000109,2]
[335933063,1724615442661,-483.01750003,0.000109,2]
[335933064,1724615442683,-174.11768936,0.000109,2]
[335933065,1724615442693,-315.06527199,0.000109,2]
[335933066,1724615442705,-362.76485203,0.000109,2]
[335933067,1724615442717,-679.83987598,0.000109,2]
[335933068,1724615442726,-387.9736616,0.000109,2]
[335933069,1724615442737,-455.24917089,0.000109,2]
[335933070,1724615442754,-716.10013959,0.000109,2]
[335933071,1724615442763,-175.72792347,0.000109,2]
[335933072,1724615442773,-176.2380285,0.000109,2]
[335933073,1724615442783,-176.23802848,0.000109,2]
[335933074,1724615442792,-176.23802848,0.000109,2]
[335933075,1724615442802,-176.23802848,0.000109,2]
[335933076,1724615442812,-329.96820799,0.000109,2]
[335933077,1724615442821,-253.11916685,0.000109,2]
[335933078,1724615442832,-103.21941051,0.000109,2]
[335933079,1724615442843,-189.55387216,0.000109,2]
[335933080,1724615442852,-577.1359701,0.000109,2]
[335933081,1724615442862,-500.0,0.00010912,2]
[335933082,1724615442872,-413.75868876,0.00010958,2]
[335933083,1724615442881,-500.0,0.00010958,2]
[335933084,1724615442890,-500.0,0.00010958,2]
[335933085,1724615442899,-500.0,0.00010958,2]
[335933086,1724615442909,-199.30226172,0.00010958,2]
[335933093,1724615443082,-177.79395471,0.00010958,2]
[335933095,1724615443093,-500.0,0.00010958,2]
[335933097,1724615443102,-500.0,0.00010958,2]
[335933099,1724615443111,-500.0,0.00010958,2]
[335933101,1724615443121,-517.26,0.00010958,2]
[335933104,1724615443130,-200.0,0.00010959,2]
[335933106,1724615443140,-79.98323504,0.00010959,2]
[335933107,1724615443152,-84.18676496,0.00010959,2]
[335933108,1724615443161,-152.11,0.00010959,2]
[335933109,1724615443171,-159.27,0.00010959,2]
[335933110,1724615443180,-149.19745574,0.00010959,2]
[335933111,1724615443191,-1350.80254426,0.00010959,2]
[335933112,1724615443200,-150.0,0.00010959,2]
[335933113,1724615443210,-168.27,0.00010959,2]
[335933114,1724615443219,-250.0,0.00010959,2]
[335933115,1724615443228,-2000.0,0.00010959,2]
[335933116,1724615443237,-500.0,0.00010973,2]
[335933117,1724615443247,-200.27330992,0.00010973,2]
[335933118,1724615443256,-200.0,0.00010981,2]
[335933119,1724615443266,-2264.0,0.0001099,2]
[335933120,1724615443276,-9653.0721996,0.00010996,2]
[335933121,1724615443285,-38572.78129278,0.00010997,2]
[335933122,1724615443294,-6417.3106603,0.00010998,2]
[335933123,1724615443304,-41457.8159564,0.00010998,2]
[335933124,1724615443313,-196.62905426,0.00010999,2]
[335933125,1724615443322,-1000.0,0.00010999,2]
[335933126,1724615443331,-1000.0,0.00010999,2]
[335933127,1724615443341,-1000.0,0.00010999,2]
[335933128,1724615443350,-1000.0,0.00010999,2]
[335933129,1724615443359,-1000.0,0.00010999,2]
[335933130,1724615443368,-695.15864772,0.00010999,2]
[335933131,1724615443378,-1000.0,0.00010999,2]
[335933132,1724615443387,-2264.92862099,0.00010999,2]
[335933133,1724615443397,-130651.43035334,0.00011,2]
[335933134,1724615443413,-11867.08119869,0.00011,2]
[335933135,1724615443423,-35596.65073552,0.00011,2]
[335933136,1724615443434,-8739.00278943,0.00011,2]
[335933137,1724615443446,-2558.2578458,0.00011,2]
[335933138,1724615443456,-373.5132,0.00011,2]
[335933139,1724615443467,-530.05992504,0.00011,2]
[335933140,1724615443479,-367.81969207,0.00011,2]
[335933141,1724615443491,-407.29910509,0.00011,2]
[335933142,1724615443511,-12754.46134342,0.00011,2]
[335933143,1724615443521,-1267.53629767,0.00011,2]
[335933144,1724615443531,-8950.60579164,0.00011,2]
[335933145,1724615443542,-3169.11893769,0.00011,2]
[335933146,1724615443555,-1668.02297108,0.00011,2]
[335933147,1724615443566,-579.35,0.00011,2]
[335933148,1724615443577,-571.48088153,0.00011,2]
[335933149,1724615443588,-8886.22503816,0.00011,2]
[335933150,1724615443598,-705.64297035,0.00011,2]
[335933152,1724615445550,-308.26898467,0.00010899,2]
[335933153,1724615445559,-2425.11136886,0.00011,2]
[335933154,1724615445572,-300.025825,0.00011,2]
[335933155,1724615445585,-1280.81103182,0.00011,2]
[335933156,1724615445607,-1246.58900404,0.00011,2]
[335933157,1724615445618,-914.18041574,0.00011,2]
[335933158,1724615445629,-7323.23000964,0.00011,2]
[335933159,1724615445640,-1002.4957405,0.00011,2]
[335933160,1724615445650,-360.08234564,0.00011,2]
[335933161,1724615445667,-581.02513369,0.00011,2]
[335933162,1724615445677,-508.5,0.00011,2]
[335933163,1724615445688,-887.79788638,0.00011,2]
[335933164,1724615445699,-904.64662748,0.00011,2]
[335933165,1724615445721,-264.69417802,0.00011,2]
[335933166,1724615445732,-7968.77538251,0.00011,2]
[335933167,1724615445743,-316.12163596,0.00011,2]
[335933168,1724615445754,-1078.57073008,0.00011,2]
[335933169,1724615445765,-320240.91476153,0.00011,2]
[335933170,1724615445774,-195970.66183245,0.00011,2]
[335933171,1724615445785,-17614.77864084,0.00011,2]
[335933172,1724615445796,-341.13686896,0.00011,2]
[335933173,1724615445808,-1189.02918722,0.00011,2]
[335933174,1724615445819,-2800.21661438,0.00011,2]
[335933175,1724615445830,-15553.24533523,0.00011,2]
[335933176,1724615445841,-598.14476084,0.00011,2]
[335933177,1724615445857,-1486.66666005,0.00011,2]
[335933178,1724615445869,-4994.61127258,0.00011,2]
[335933179,1724615445883,-555.0,0.00011,2]
[335933180,1724615445894,-1325.98466,0.00011,2]
[335933181,1724615642051,352.81,8.375e-05,2]
[335933182,1724615706516,496.0,9.966e-05,2]
[335933183,1724615725692,267.33,9.931e-05,2]
[335933184,1724615741946,250.0,9.926e-05,2]
[335933185,1724615754420,358.74,9.934e-05,2]
[335933187,1724615877386,2525.29,9.87e-05,2]
[335933188,1724615880760,247.35,9.791e-05,2]
[335933189,1724615892092,1106.00770764,0.00010009,2]
[335933195,1724616113681,603.91,9.705e-05,2]
[335933197,1724616215007,508.25,9.681e-05,2]
[335933199,1724616220558,500.0,0.00027,120]
[335933202,1724616306595,267.33,9.645e-05,2]
[335933203,1724616338028,373.63,8.219e-05,2]
[335933204,1724616355202,527.19740296,0.00010009,2]
[335933205,1724616367083,247.37,9.654e-05,2]
[335933206,1724616392486,756.11201824,9.962e-05,2]
[335933207,1724616406343,1000.0,9.668e-05,2]
[335933209,1724616410595,23900.0,9.659e-05,2]
[335933211,1724616432411,500.0,0.00027,120]
[335933212,1724616437634,2151.0,0.0001,3]
[335933213,1724616451801,500.0,0.00027,120]
[335933215,1724616491886,500.0,0.00027,120]
[335933244,1724616631865,-1730.78442526,0.00010116,2]
[335933245,1724616631875,-500.0,0.00010207,2]
[335933246,1724616631886,-500.0,0.00010216,2]
[335933247,1724616631895,-213.69242054,0.00010225,2]
[335933248,1724616631908,-286.30757946,0.00010225,2]
[335933249,1724616631917,-49.07003253,0.00010233,2]
[335933250,1724616631928,-450.92996747,0.00010233,2]
[335933251,1724616631937,-500.0,0.00010242,2]
[335933252,1724616631947,-500.0,0.00010251,2]
[335933253,1724616631956,-302.30452662,0.0001026,2]
[335933254,1724616631967,-197.69547338,0.0001026,2]
[335933255,1724616631976,-500.0,0.00010269,2]
[335933256,1724616631986,-218.80621173,0.00010277,2]
[335933257,1724616631997,-281.19378827,0.00010277,2]
[335933258,1724616632007,-500.0,0.00010286,2]
[335933259,1724616632017,-500.0,0.00010295,2]
[335933260,1724616632026,-150.99,0.00010295,2]
[335933261,1724616632036,-500.0,0.00010304,2]
[335933263,1724616632049,-839.2412,0.00010309,2]
[335933264,1724616632058,-500.0,0.00010313,2]
[335933266,1724616632069,-262.0,0.0001032,2]
[335933268,1724616632079,-500.0,0.00010321,2]
[335933270,1724616632088,-500.0,0.0001033,2]
[335933272,1724616632097,-500.0,0.00010339,2]
[335933274,1724616632107,-300.0,0.00010347,2]
[335933276,1724616632117,-500.0,0.00010348,2]
[335933278,1724616632126,-500.0,0.00010357,2]
[335933280,1724616632136,-500.0,0.00010365,2]
[335933282,1724616632146,-500.0,0.00010374,2]
[335933286,1724616632273,-500.0,0.00010383,2]
[335933287,1724616632334,-500.0,0.00010392,2]
[335933288,1724616632344,-150.0,0.00010392,2]
[335933289,1724616632354,-500.0,0.00010401,2]
[335933290,1724616632364,-500.0,0.00010409,2]
[335933291,1724616632374,-373.63,0.00010457,2]
[335933292,1724616632383,-337.835,0.0001067,2]
[335933293,1724616632393,-5884.13633672,0.0001068,2]
[335933294,1724616632409,-840.32946328,0.0001068,2]
[335933295,1724616632418,-15121.3195061,0.0001068,2]
[335933296,1724616632429,-377.86782155,0.0001068,2]
[335933297,1724616632440,-482.99531256,0.0001068,2]
[335933298,1724616632451,-16161.49965979,0.0001068,2]
[335933299,1724616632460,-909.46121436,0.00010699,2]
[335933300,1724616632470,-2112.28624346,0.00010713,2]
[335933301,1724616632480,-213.6247,0.000108,2]
[335933302,1724616632489,-1298.20256348,0.00010852,2]
[335933303,1724616632499,-4784.11289421,0.00010861,2]
[335933304,1724616632511,-3347.07412977,0.00010861,2]
[335933305,1724616632523,-1042.5,0.00010861,2]
[335933306,1724616632534,-1446.28093608,0.00010861,2]
[335933307,1724616632558,-155.0,0.00010097,2]
[335933308,1724616632567,-329.55762474,0.00010861,2]
[335933310,1724616637781,-1200.0,0.00010861,2]
[335933311,1724616637795,-297.48711185,0.00010861,2]
[335933312,1724616637813,-1781.28071201,0.00010861,2]
[335933313,1724616637835,-9005.59263688,0.00010861,2]
[335933314,1724616637848,-8269.0,0.00010861,2]
[335933315,1724616637859,-339.1733676,0.00010861,2]
[335933316,1724616637871,-3906.15470485,0.00010861,2]
[335933317,1724616637880,-253.82565445,0.00010861,2]
[335933318,1724616637890,-685.40080271,0.00010861,2]
[335933319,1724616637899,-466.77824516,0.00010862,2]
[335933320,1724616637908,-1000.0,0.00010877,2]
[335933321,1724616637918,-455.59733611,0.00010888,2]
[335933322,1724616637927,-160.9962003,0.00010888,2]
[335933323,1724616637937,-186.03740953,0.0001089,2]
[335933324,1724616637946,-432.79780732,0.0001089,2]
[335933325,1724616637955,-330.4044326,0.0001089,2]
[335933326,1724616637964,-563.33203831,0.0001089,2]
[335933327,1724616637973,-639.13431453,0.00010899,2]
[335933328,1724616637982,-155.1849344,0.00010899,2]
[335933329,1724616637992,-309.34344666,0.00010899,2]
[335933330,1724616638001,-639.13431448,0.00010899,2]
[335933331,1724616638011,-639.13431448,0.00010899,2]
[335933332,1724616638021,-639.13431448,0.00010899,2]
[335933333,1724616638031,-639.13431448,0.00010899,2]
[335933334,1724616638041,-639.13431448,0.000109,2]
[335933335,1724616638051,-111.14110067,0.000109,2]
[335933336,1724616638062,-527.99321381,0.000109,2]
[335933337,1724616638071,-335.4322,0.000109,2]
[335933338,1724616638080,-846.57458624,0.000109,2]
[335933339,1724616638091,-422.93455817,0.000109,2]
[335933340,1724616638102,-497.30165559,0.000109,2]
[335933341,1724616638111,-260.81056212,0.000109,2]
[335933342,1724616638122,-378.32375236,0.000109,2]
[335933343,1724616638131,-639.13431448,0.000109,2]
[335933344,1724616638140,-7156.07182684,0.000109,2]
[335933345,1724616638151,-321.9795266,0.000109,2]
[335933347,1724616638162,-133.00914656,0.000109,2]
[335933349,1724616638171,-1000.0,0.000109,2]
[335933351,1724616638180,-22256.4995,0.000109,2]
[335933353,1724616638190,-531.62,0.000109,2]
[335933355,1724616638199,-150.0,0.000109,2]
[335933357,1724616638208,-150.59,0.000109,2]
[335933359,1724616638217,-150.0,0.000109,2]
[335933362,1724616638226,-426.91,0.000109,2]
[335933365,1724616638235,-163.47409798,0.000109,2]
[335933367,1724616638244,-639.13431448,0.000109,2]
[335933368,1724616638253,-616.83309968,0.000109,2]
[335933370,1724616638263,-337.25516234,0.000109,2]
[335933372,1724616638272,-500.0,0.00010912,2]
[335933374,1724616638281,-218.58238169,0.00010949,2]
[335933376,1724616638290,-250.0,0.00010959,2]
[335933378,1724616638300,-164.17,0.00010959,2]
[335933380,1724616638309,-537.65,0.00010959,2]
[335933382,1724616638318,-150.0,0.00010959,2]
[335933384,1724616638327,-311.18154528,0.00010959,2]
[335933387,1724616638338,-705.3146958,0.00010959,2]
[335933389,1724616638349,-280.53396906,0.00010959,2]
[335933392,1724616638365,-202.96978986,0.00010959,2]
[335933394,1724616638375,-500.0,0.00010973,2]
[335933396,1724616638384,-1791.90705976,0.00010993,2]
[335933397,1724616638393,-1000.0,0.00010999,2]
[335933399,1724616638402,-1000.0,0.00010999,2]
[335933401,1724616638411,-1000.0,0.00010999,2]
[335933403,1724616638420,-1000.0,0.00010999,2]
[335933405,1724616638429,-1000.0,0.00010999,2]
[335933407,1724616638438,-1000.0,0.00010999,2]
[335933409,1724616638447,-1000.0,0.00010999,2]
[335933411,1724616638456,-1000.0,0.00010999,2]
[335933413,1724616638465,-32207.99044082,0.00011,2]
[335933416,1724616638485,-1351.70136552,0.00011,2]
[335933469,1724616639990,-3935.054666,0.00011,2]
[335933470,1724616640043,-32741.37224146,0.00011,2]
[335933471,1724616640098,-927.40059338,0.00011,2]
[335933472,1724616640109,-12550.0,0.00011,2]
[335933477,1724616642875,-571.79736471,0.00010861,2]
[335933478,1724616642886,-7743.25912612,0.00011,2]
[335933495,1724616645704,-327.97891729,0.00011,2]
[335933496,1724616645868,-3703.11815782,0.00011,2]
[335933497,1724616645882,-22455.3772894,0.00011,2]
[335933498,1724616645894,-9203.52430923,0.00011,2]
[335933499,1724616645922,-940.87063428,0.00010999,2]
[335933500,1724616645934,-59.12936572,0.00010999,2]
[335933501,1724616645943,-17028.47762625,0.00011,2]
[335934034,1724616727924,-2767.2662,0.000108,2]
[335934035,1724616758565,162.85453106,0.000108,2]
[335934036,1724616761756,181.97999253,0.000108,2]
[335934037,1724616762887,413.35824992,0.000108,2]
[335934038,1724616763763,299.50985244,0.000108,2]
[335934039,1724616777618,170.6347928,0.000108,2]
[335934040,1724616785187,485.07840464,0.000108,2]
[335934041,1724616813117,1051.05102404,0.000108,2]
[335934042,1724616840922,299.50985244,0.000108,2]
[335934043,1724616860077,247.37,0.00010096,2]
[335934044,1724616916785,321.38710013,0.00010332,2]
[335934045,1724617079104,371.86,8.219e-05,2]
[335934049,1724617142458,506.51,0.00027,120]
[335934051,1724617479170,664.27,9.951e-05,2]
[335934052,1724617503116,310.0,0.00027,120]
[335934053,1724617503180,310.0,0.00027,120]
[335934054,1724617503281,513.0,0.00027,120]
[335934056,1724617633719,150.5,0.00017798,120]
[335934057,1724617634297,150.5,0.00017788,120]
[335934058,1724617634756,150.5,0.00017778,120]
[335934059,1724617635282,150.5,0.00017798,120]
[335934060,1724617635752,150.5,0.00017788,120]
[335934061,1724617636217,150.5,0.00017778,120]
[335934062,1724617636866,207.01,0.00017798,120]
[335934063,1724617649676,370.5,8.219e-05,2]
[335934069,1724617701260,1268.44968028,9.992e-05,2]
[335934070,1724617702360,760.79843827,8.219e-05,2]
[335934071,1724617712426,1909.35909111,0.00025,60]
[335934082,1724617718164,238.60513952,0.00018,120]
[335934084,1724617733918,175.95,7.199e-05,2]
[335934085,1724617737872,473.42142859,9.962e-05,2]
[335934089,1724617742356,-667.06663495,0.00018,30]
[335934092,1724617742386,-2329.03,0.00021589,30]
[335934094,1724617742416,-250.0,0.00022,30]
[335934095,1724617742443,-239.14810283,0.00022,30]
[335934096,1724617742474,-2404.70521763,0.00024,30]
[335934097,1724617742501,-2110.0,0.000245,30]
[335934098,1724617742530,-2329.03,0.0002475,30]
[335934099,1724617742554,-1000.0,0.00024802,30]
[335934100,1724617742578,-5000.0,0.0002488,31]
[335934101,1724617742605,-2649.02,0.000249,31]
[335934102,1724617742631,-2649.02,0.000249,31]
[335934103,1724617742657,-2649.02,0.000249,31]
[335934105,1724617742682,-2649.02,0.000249,31]
[335934106,1724617742707,-2649.02,0.000249,31]
[335934108,1724617742733,-2649.02,0.000249,31]
[335934109,1724617742757,-2649.02,0.000249,31]
[335934110,1724617742782,-2649.02,0.000249,31]
[335934111,1724617742806,-2649.02,0.000249,31]
[335934112,1724617742831,-2649.02,0.000249,31]
[335934113,1724617742855,-2649.02,0.000249,31]
[335934114,1724617742880,-2649.02,0.000249,31]
[335934115,1724617742905,-2649.02,0.000249,31]
[335934116,1724617742930,-2649.02,0.000249,31]
[335934117,1724617742956,-2649.02,0.000249,31]
[335934118,1724617742981,-2649.02,0.000249,31]
[335934119,1724617743009,-2326.25453473,0.00025,30]
[335934120,1724617743032,-2100.0,0.00025,30]
[335934121,1724617743056,-1096.84930415,0.00025,30]
[335934122,1724617743081,-2110.0,0.00025,30]
[335934123,1724617743108,-1000.0,0.0002509,30]
[335934124,1724617743132,-1000.0,0.00025379,30]
[335934125,1724617743157,-2110.0,0.000255,30]
[335934126,1724617743181,-1000.0,0.00025667,30]
[335934127,1724617743205,-1000.0,0.00025955,30]
[335934128,1724617743230,-2110.0,0.00026,30]
[335934129,1724617743254,-1000.0,0.00026244,30]
[335934130,1724617743278,-2110.0,0.000265,30]
[335934131,1724617743302,-1000.0,0.00026532,30]
[335934132,1724617743327,-1000.0,0.0002682,30]
[335934133,1724617743357,-1962947.44185939,0.00027,30]
[335934134,1724617743383,-2110.0,0.00027,30]
[335934135,1724617743408,-500.0,0.00027,30]
[335934136,1724617743433,-500.0,0.00027,30]
[335934137,1724617743457,-500.0,0.00027,30]
[335934138,1724617743482,-500.0,0.00027,30]
[335934139,1724617743505,-500.0,0.00027,30]
[335934140,1724617743529,-500.0,0.00027,30]
[335934141,1724617743553,-500.0,0.00027,30]
[335934142,1724617743577,-500.0,0.00027,30]
[335934143,1724617743600,-500.0,0.00027,30]
[335934144,1724617743624,-500.0,0.00027,30]
[335934145,1724617743646,-500.0,0.00027,30]
[335934146,1724617743670,-500.0,0.00027,30]
[335934147,1724617743694,-445.42921943,0.00027,30]
[335934148,1724617743720,-2649.02,0.00027,31]
[335934149,1724617743746,-2649.02,0.00027,31]
[335934150,1724617743771,-2649.02,0.00027,31]
[335934151,1724617743797,-2649.02,0.00027,31]
[335934152,1724617743823,-2649.02,0.00027,31]
[335934153,1724617743849,-2649.02,0.00027,31]
[335934154,1724617743875,-2649.02,0.00027,31]
[335934155,1724617743900,-2649.02,0.00027,31]
[335934156,1724617743924,-2649.02,0.00027,31]
[335934157,1724617743950,-2649.02,0.00027,31]
[335934158,1724617743976,-2649.02,0.00027,31]
[335934159,1724617744001,-2649.02,0.00027,31]
[335934160,1724617744025,-2649.02,0.00027,31]
[335934161,1724617744051,-2649.02,0.00027,31]
[335934162,1724617744077,-2649.02,0.00027,31]